{"text_format":"1","workbook":"xlsx","n_sheets":9,"sheets":["Instructivo","DEMANDA ANUAL","VOLUMEN DE QUEJAS","COSTO ADMINISTRACIÓN PÚBLICA","RESUMEN DE COSTOS AP","AUXILIAR COSTO ADMINISTRACIÓN","TIEMPO DE RESPUESTA","CANAL ATENCIÓN","RESUMEN"],"not_rendered":{"charts":0,"images":7,"macros":1,"external_links":0,"defined_names":0,"comments":5,"pivot_tables":0},"unopened":[],"bounds":{"document_bytes":16777216,"sheet_cells":100000,"rows_first":2000,"rows_last":500,"rows_between":2000,"halvings":0,"cell_chars":16384,"cell_head_chars":4096},"cells_cut":0,"cells_raw":0,"read":"whole","date_system":"1900"}

{"sheet":"Instructivo","index":0,"n_rows":70,"n_cols":1,"rows_kept":70,"cut":false,"hidden":false,"merged":[]}
["CRITERIO DE PRIORIZACIÓN DE TRÁMITES ADMINISTRATIVOS"]
["Instructivo"]
["Consideraciones generales"]
[]
["En las hojas “COSTO DE ADMINISTRACIÓN PÚBLICA”y “RESUMEN”  para añadir más trámites y que apliquen las fórmulas, se deberá seleccionar la primera fila y copiarla una por cada trámite de la entidad"]
[]
["Todas las hojas tienen columnas de color celeste, en las cuales NO deben ingresar valores ya que contienen fórmulas."]
["Para la carga en GOB.EC. La institución debe recordar que el peso máximo del archivo es de 2 MB."]
["Esquema de puntuación"]
["Para priorizar un trámite, se realizará un análisis de criterios básicos y adicionales basado en información que disponen las instituciones sujetas a esta norma técnica. Cada criterio será puntuado según los lineamientos presentes en esta norma."]
["a) Demanda Anual"]
["Considerará el volumen o frecuencia de las solicitudes que ingresan al año a cada institución para la gestión de un trámite en particular."]
["La identificación del volumen anual de los trámites se realizará a través de sus registros de transacciones y/o el número de visitas de consulta de información realizadas a través de páginas web institucionales."]
["Para realizar el registro realice lo siguiente:"]
["1.- Seleccione la hoja DEMANDA ANUAL"]
["2.- Ingrese los trámites de la institución registrando el identificador y nombre en las columnas respectivas.  "]
["3.- Para cada trámite debe especificar en la columna DEMANDA ANUAL el volumen o frecuencia anual, de acuerdo a lo mencionado anteriormente."]
["4.- Una vez terminado el llenado solicitado presione el botón PUNTUACIÓN, se ordenara de menor a mayor. "]
["5.- Usted visualizará el ordenamiento de los trámites ingresados de acuerdo al número de  volumen o frecuencia anual."]
["6.- Así mismo, usted visualizará el puntaje obtenido en la columna PUNTUACIÓN de acuerdo al grupo obtenido por cada trámite de acuerdo al número de volumen o frecuencia anual cosiderando lo siguiente: ** Primer grupo (trámites con menor demanda no incluye los trámites con demanda 0 ) = 3\n** Segundo grupo (trámites con demanda intermedia) = 6\n** Tercer grupo (trámites con mayor demanda) = 10"]
["Cada vez que requiera actualizar el puntaje presionando el botón puntuación, debe verificar que la celda de la columna puntaje se encuentren vacías, es decir, se debe borrar cualquier valor de puntaje obtenido previamente."]
["b) Volumen de quejas asociadas a un trámite: "]
["Considerará la cantidad de quejas recibidas en relación a un trámite durante un año. Estas quejas deberán estar documentadas en medios físicos y/o digitales."]
["Para determinar la puntuación, se colocará en una tabla todos los trámites con sus correspondientes quejas ordenándose de menor a mayor. Se dividirá en 2 partes en los que cada grupo contenga la misma cantidad de trámites."]
["Para realizar el registro realice lo siguiente:"]
["1.- Seleccione la hoja VOLUMEN DE QUEJAS"]
["2.- Ingrese los trámites de la institución registrando el identificador y nombre en las columnas respectivas.  Si usted requiere de acuerdo al número de trámites copie filas adicionales que estén dentro del cuadro"]
["3.- Para cada trámite debe especificar en la columna VOLUMEN QUEJAS el número de quejas anual, de acuerdo a lo mencionado anteriormente."]
["4.- Una vez terminado el llenado solicitado presione el botón PUNTUACIÓN."]
["5.- Usted visualizará el ordenamiento de los trámites ingresados de acuerdo al número de  volumen o frecuencia anual."]
["6.- Así mismo, usted visualizará el puntaje obtenido en la columna PUNTUACIÓN de acuerdo al grupo obtenido por cada trámite de acuerdo al número de volumen o frecuencia anual cosiderando lo siguiente: La puntuación se basará en los siguientes grupos:\n** Primer grupo (trámites con menor cantidad de quejas, no incluye los trámites con queja 0 ) = 4\n** Segundo grupo (trámites con mayor porcentaje de quejas) = 10"]
["El valor del volumen de quejas no debe ser superior al valor del volumen de la demana, no le permitirá registrar un valor."]
["c) Costo para la administración pública: "]
["En cada trámite, basado en un caso estándar, se deberá estimar el costo incurrido en el costo de personal y recursos necesarios para su atención desde que el administrado entregó todos los requisitos hasta que la institución entregue el producto, respuesta o servicio requerido en el trámite. Se considerará:"]
["• Costo de personal:"]
["Costo del personal para atender el trámite, se excluyen actividades realizadas automáticamente o que dependen del administrado. El tiempo deberá considerar únicamente el tiempo efectivo de trabajo del personal, no debe considerar el tiempo de espera o de movimiento."]
["• Costo de recursos:"]
["Se deberá considerar el costo directo en el que la institución debe incurrir para atender un trámite. Se debe considerar los insumos o materia prima necesaria u cualquier otro que la institución considere pertinente."]
["Para realizar el registro realice lo siguiente:"]
["1.- Seleccione la hoja COSTO ADMINISTRACIÓN PÚBLICA"]
["2.- Ingrese los trámites de la institución registrando el identificador y nombre en las columnas respectivas.  Si usted requiere de acuerdo al número de trámites copie filas adicionales que estén dentro del cuadro"]
["3.- Para calcular el tiempo de las actividades, utilizar la hoja AUXILIAR COSTO ADMINISTRACIÓN donde deberá listar todas las actividades que realiza la institución en un caso estándar y asignar el tiempo mínimo que toma cada actvidad (en horas). El tiempo total de las actividades, deberá ingresar en la correspondiente celda de la hoja COSTO ADMINISTRACIÓN PÚBLICA"]
["4.- En función de la información registrada en el paso 3, la matriz entregará el costo del personal"]
["5.- Completar la columna \"Costo recursos\", en la cual ingresará el costo directo en el que incurre la institución para entregar el trámite. En este valor se considerarán los valores correspondientes a insumos y/o materia prima mínimos que se invierten por cada trámite (no se considera mano de obra)"]
["6.- La columna \"Costo para la adm. pública\" mostrará el costto de este criterio para cada trámite"]
["7,- Para que la fórmula funcione debe arrastrar hacia abajo al último de los támites ingresados, no copiar"]
["7.- Una vez que disponga del Costo para la administración pública, presionar el botón \"GENERAR\"."]
["8. Visualizar la hoja “RESUMEN DE COSTO AP” en la que va a encontrar copiada las celdas necesarias para el ordenamiento y puntuación de las mismas al presionar el botón “PUNTUACIÓN”"]
[]
["d) Tiempo de respuesta: "]
["Considerará los tiempos que a las instituciones les toma dar respuesta a un trámite desde que reciben la solicitud del administrado hasta la finalización del mismo. Para la definición del tiempo se considerará un caso estándar."]
["Para determinar la puntuación, se colocará en una tabla todos los trámites con el tiempo de respuesta, ordenándose de menor a mayor. Se dividirá en 4 grupos, en los que cada uno contenga la misma cantidad de trámites."]
["Para realizar el registro realice lo siguiente:"]
["1.- Seleccione la hoja TIEMPO DE RESPUESTA"]
["2.- Ingrese los trámites de la institución registrando el identificador y nombre en las columnas respectivas.  Si usted requiere de acuerdo al número de trámites copie filas adicionales que estén dentro del cuadro"]
["3.- Para cada trámite debe especificar en la columna TIEMPO RESPUESTA el tiempo, de acuerdo a lo mencionado anteriormente."]
["4.- Una vez terminado el llenado solicitado presione el botón PUNTUACIÓN."]
["5.- Usted visualizará el ordenamiento de los trámites ingresados de acuerdo al número de  volumen o frecuencia anual."]
["6.- Así mismo, usted visualizará el puntaje obtenido en la columna PUNTUACIÓN de acuerdo al grupo obtenido por cada trámite de acuerdo al número de volumen o frecuencia anual cosiderando lo siguiente:  La puntuación considera lo siguiente:\n** Primer grupo (menor o igual a 40 horas laboralres) = 0\n** Segundo grupo mayor  40 horas laboralres) = 30"]
["e) Canal de atención: "]
["Considerará los canales de atención a través de los cuales el administrado puede iniciar el trámite."]
["Para realizar el registro realice lo siguiente:"]
["1.- Seleccione la hoja CANAL ATENCIÓN"]
["2.- Ingrese los trámites de la institución registrando el identificador y nombre en las columnas respectivas.  Si usted requiere de acuerdo al número de trámites copie filas adicionales que estén dentro del cuadro"]
["3.- Para cada trámite debe seleccionar el canal de atención del trámite en la columna CANAL ATENCIÓN, que pueden ser: \nEl trámite se puede completar totalmente en línea: Se considera trámite totalmente en línea cuando el administrado no requiere realizar ninguna interacción presencial con la institución = 0\nEl trámite no se puede completar totalmente en línea: Se considera este caso, cuando el trámite incluye al menos una actividad, incluido mecanismos de pago, en la que el administrado deba acudir presencialmente a la institución, para la realización de dicho trámite. Los trámites presenciales se consideran dentro de esta categoría = 10"]
["4.- De acuerdo a la selección usted obtendrá la puntuación del trámite que se visualizará en la columna PUNTUACIÓN."]
[]
["f) Resumen"]
["En esta hoja deberá consolidar todas las puntuaciones obtenidas para cada trámite en los criterios a) hasta e). Adicionalmente deberá analizar los criterios adicionales que dispone la norma técnica, para estos últimos solamente deberá seleccionar en la celda correspondiente y la matriz asignará la puntuación adicional. Los criterios que deberá considerar son:\n- NECESIDADES CIUDADANAS: Si la institución ha implementado mecanismos para identificar necesidades ciudadanas respecto al trámite, seleccionar \"SI\", caso contrario, seleccionar \"NO\"\n- SUSCEPTIBILIDAD A CORRUPCIÓN: Si la institución dispone de información documentada sobre presuntos actos de corrupción, seleccionar \"SI\", caso contrario, seleccionar \"NO\"\n- VOLUMEN DE DEVOLUCIONES: Si la institución posee documentación sobre devoluciones del trámite en una cantidad significativa, seleccionar \"SI\", caso contrario, seleccionar \"NO\"\nPara que funcione la lista depelgable debe arrastrar la lista y la puntuación hacia abajo al último de los támites ingresados, no copiar"]
["En la columna puntaje total se realizará la sumatoria de los valores de los criterios básicos y adicionales. Este valor deberá registrarse en la plataforma GOB.EC"]

{"sheet":"DEMANDA ANUAL","index":1,"n_rows":43,"n_cols":4,"rows_kept":43,"cut":false,"hidden":false,"merged":[[0,0,0,3],[1,0,1,3]]}
["PRIORIZACIÓN DE TRÁMITES ADMINISTRATIVOS"]
["DEMANDA ANUAL"]
[]
["IDENTIFICADOR","TRÁMITE","DEMANDA ANUAL","PUNTAJE"]
["IGM-005-02-01","Acceso a la Red de Monitoreo Continuo GNSS (Global Navigation Satellite System) del Ecuador",0,0]
["IGM-006-03-01","Asesoramiento y/o asistencia técnica en el ámbito de la infraestructura de datos espaciales, cartográfico, geográfico.",0,0]
["IGM-009-03-01","Atención a consultas de mapoteca para estudiantes, investigadores, docentes y público en general",0,0]
["IGM-010-02-01","Fiscalización de proyectos cartográficos dirigidos a instituciones de la administración pública, gobiernos seccionales y empresas privadas.",0,0]
["IGM-006-01-03","Generación de bases de datos geográfica temática.",0,0]
["IGM-006-01-02","Generación de cartografía temática militar.",0,0]
["IGM-006-02-01","Generación de la base cartográfica oficial del país a escalas medianas y pequeñas.",0,0]
["IGM-006-01-01","Generación del estudio geográfico para sector público y privado",0,0]
["IGM-009-03-02","Información de cartografía histórica y bienes culturales para estudiantes, investigadores, docentes y público en general",0,0]
["IGM-010-01-01","Pronunciamiento técnico para ejecutar trabajos cartográficos, internación de equipos y aeronaves para personas naturales o jurídicas.",0,0]
["IGM-009-01-02","Talleres educativos relacionados con de las ciencias astronómicas y de la tierra",0,0]
["IGM-006-04-01","Transferencia de conocimiento cartográfico - geográfico para el ámbito militar.",0,0]
["IGM-006-04-02","Transferencia de conocimiento en el desarrollo de infraestructura de datos espaciales para el ámbito civil.",0,0]
["IGM-001-02-02","Emisión de datos e información terrestre no reservada",1,3]
["IGM-001-01-02","Emisión de datos e información terrestre no reservada para el Estado",1,3]
["IGM-001-02-01","Emisión de datos e información terrestre reservada",1,3]
["IGM-001-01-01","Emisión de datos e información terrestre reservada para el Estado",1,3]
["IGM-003-01-01","Asesoramiento, asistencia y desarrollo de procesos geodésicos - control horizontal (levantamientos, replanteos y fiscalización) para el desarrollo, defensa y seguridad requeridos por el Estado, personas naturales y jurídicas",2,3]
["IGM-003-02-01","Asesoramiento, asistencia y desarrollo de procesos geodésicos - control vertical (levantamientos, replanteos y fiscalización) para el desarrollo, defensa y seguridad requeridos por el Estado, personas naturales y jurídicas",2,3]
["IGM-003-03-01","Asesoramiento, asistencia y desarrollo de procesos geodésicos - gravimetría (levantamientos, replanteos y fiscalización) para el desarrollo, defensa y seguridad requeridos por el Estado, personas naturales y jurídicas",2,3]
["IGM-004-01-02","Emisión de cartografía, imágenes y modelos digitales No Reservada para el Estado",2,3]
["IGM-004-02-02","Emisión de cartografía, imágenes y modelos digitales no reservadas para personas naturales o jurídicas",2,3]
["IGM-004-01-01","Emisión de cartografía, imágenes y modelos digitales Reservadas para el Estado",2,3]
["IGM-004-02-01","Emisión de cartografía, imágenes y modelos digitales reservadas para personas naturales o jurídicas",2,3]
["IGM-008-01-04","Emisión de material cartográfico de áreas no reservadas, impreso y/o digital para el sector público, privado.",6,6]
["IGM-008-01-03","Emisión de material cartográfico de áreas reservadas, impreso y/o digital para el sector público, privado.",6,6]
["IGM-002-03-02","Autorización para realizar publicaciones de documentos cartográficos, temáticos y geográficos",7,6]
["IGM-002-03-01","Autorización para trabajos cartográficos",7,6]
["IGM-002-02-02","Registro para realizar publicaciones cartográficas, temáticas y geográficas - Personas Jurídicas",7,6]
["IGM-002-02-01","Registro para realizar publicaciones cartográficas, temáticas y geográficas - Personas Naturales",7,6]
["IGM-002-01-02","Registro para realizar trabajos cartográficos, temáticos y geográficos - Personas Jurídicas",7,6]
["IGM-002-01-01","Registro para realizar trabajos cartográficos, temáticos y geográficos - Personas Naturales",7,6]
["NO APLICA","Atención de solicitudes de acceso a la información pública",17,10]
["IGM-007-01-02","Documentos de seguridad utilizados en administración pública y/o privada.",54,10]
["IGM-007-02-01","Especies Valoradas utilizadas en Administración Pública",54,10]
["IGM-007-03-01","Tarjetas Sintéticas de Seguridad utilizadas en Administración Pública y/o Privada.",54,10]
["IGM-005-01-01","Información cartográfica-geográfica en línea (Escalas liberadas 1:1000.000, 1:250.000, 1:50.000)",1626,10]
["IGM-009-01-01","Exposiciones y/o recorridos guiados relacionados con de las ciencias astronómicas y de la tierra",2661,10]
["IGM-009-01-03","Proyecciones audiovisuales relacionadas con las ciencias astronómicas y de la tierra",2661,10]

{"sheet":"VOLUMEN DE QUEJAS","index":2,"n_rows":43,"n_cols":6,"rows_kept":43,"cut":false,"hidden":false,"merged":[[0,0,0,5],[1,0,1,5]]}
["PRIORIZACIÓN DE TRÁMITES ADMINISTRATIVOS"]
["VOLUMEN DE QUEJAS"]
[]
["IDENTIFICADOR","TRÁMITE","VOLUMEN DEMANDA","VOLUMEN DE QUEJAS","PORCENTAJE","PUNTUACIÓN"]
["IGM-005-02-01","Acceso a la Red de Monitoreo Continuo GNSS (Global Navigation Satellite System) del Ecuador",0,0,0,0]
["IGM-006-03-01","Asesoramiento y/o asistencia técnica en el ámbito de la infraestructura de datos espaciales, cartográfico, geográfico.",0,0,0,0]
["IGM-009-03-01","Atención a consultas de mapoteca para estudiantes, investigadores, docentes y público en general",0,0,0,0]
["IGM-010-02-01","Fiscalización de proyectos cartográficos dirigidos a instituciones de la administración pública, gobiernos seccionales y empresas privadas.",0,0,0,0]
["IGM-006-01-03","Generación de bases de datos geográfica temática.",0,0,0,0]
["IGM-006-01-02","Generación de cartografía temática militar.",0,0,0,0]
["IGM-006-02-01","Generación de la base cartográfica oficial del país a escalas medianas y pequeñas.",0,0,0,0]
["IGM-006-01-01","Generación del estudio geográfico para sector público y privado",0,0,0,0]
["IGM-009-03-02","Información de cartografía histórica y bienes culturales para estudiantes, investigadores, docentes y público en general",0,0,0,0]
["IGM-010-01-01","Pronunciamiento técnico para ejecutar trabajos cartográficos, internación de equipos y aeronaves para personas naturales o jurídicas.",0,0,0,0]
["IGM-009-01-02","Talleres educativos relacionados con de las ciencias astronómicas y de la tierra",0,0,0,0]
["IGM-006-04-01","Transferencia de conocimiento cartográfico - geográfico para el ámbito militar.",0,0,0,0]
["IGM-006-04-02","Transferencia de conocimiento en el desarrollo de infraestructura de datos espaciales para el ámbito civil.",0,0,0,0]
["IGM-001-02-02","Emisión de datos e información terrestre no reservada",1,0,0,0]
["IGM-001-01-02","Emisión de datos e información terrestre no reservada para el Estado",1,0,0,0]
["IGM-001-02-01","Emisión de datos e información terrestre reservada",1,0,0,0]
["IGM-001-01-01","Emisión de datos e información terrestre reservada para el Estado",1,0,0,0]
["IGM-003-01-01","Asesoramiento, asistencia y desarrollo de procesos geodésicos - control horizontal (levantamientos, replanteos y fiscalización) para el desarrollo, defensa y seguridad requeridos por el Estado, personas naturales y jurídicas",2,0,0,0]
["IGM-003-02-01","Asesoramiento, asistencia y desarrollo de procesos geodésicos - control vertical (levantamientos, replanteos y fiscalización) para el desarrollo, defensa y seguridad requeridos por el Estado, personas naturales y jurídicas",2,0,0,0]
["IGM-003-03-01","Asesoramiento, asistencia y desarrollo de procesos geodésicos - gravimetría (levantamientos, replanteos y fiscalización) para el desarrollo, defensa y seguridad requeridos por el Estado, personas naturales y jurídicas",2,0,0,0]
["IGM-004-01-02","Emisión de cartografía, imágenes y modelos digitales No Reservada para el Estado",2,0,0,0]
["IGM-004-02-02","Emisión de cartografía, imágenes y modelos digitales no reservadas para personas naturales o jurídicas",2,0,0,0]
["IGM-004-01-01","Emisión de cartografía, imágenes y modelos digitales Reservadas para el Estado",2,0,0,0]
["IGM-004-02-01","Emisión de cartografía, imágenes y modelos digitales reservadas para personas naturales o jurídicas",2,0,0,0]
["IGM-008-01-04","Emisión de material cartográfico de áreas no reservadas, impreso y/o digital para el sector público, privado.",6,0,0,0]
["IGM-008-01-03","Emisión de material cartográfico de áreas reservadas, impreso y/o digital para el sector público, privado.",6,0,0,0]
["IGM-002-03-02","Autorización para realizar publicaciones de documentos cartográficos, temáticos y geográficos",7,0,0,0]
["IGM-002-03-01","Autorización para trabajos cartográficos",7,0,0,0]
["IGM-002-02-02","Registro para realizar publicaciones cartográficas, temáticas y geográficas - Personas Jurídicas",7,0,0,0]
["IGM-002-02-01","Registro para realizar publicaciones cartográficas, temáticas y geográficas - Personas Naturales",7,0,0,0]
["IGM-002-01-02","Registro para realizar trabajos cartográficos, temáticos y geográficos - Personas Jurídicas",7,0,0,0]
["IGM-002-01-01","Registro para realizar trabajos cartográficos, temáticos y geográficos - Personas Naturales",7,0,0,0]
["NO APLICA","Atención de solicitudes de acceso a la información pública",17,0,0,0]
["IGM-007-01-02","Documentos de seguridad utilizados en administración pública y/o privada.",54,0,0,0]
["IGM-007-02-01","Especies Valoradas utilizadas en Administración Pública",54,0,0,0]
["IGM-007-03-01","Tarjetas Sintéticas de Seguridad utilizadas en Administración Pública y/o Privada.",54,0,0,0]
["IGM-005-01-01","Información cartográfica-geográfica en línea (Escalas liberadas 1:1000.000, 1:250.000, 1:50.000)",1626,0,0,0]
["IGM-009-01-01","Exposiciones y/o recorridos guiados relacionados con de las ciencias astronómicas y de la tierra",2661,0,0,0]
["IGM-009-01-03","Proyecciones audiovisuales relacionadas con las ciencias astronómicas y de la tierra",2661,0,0,0]

{"sheet":"COSTO ADMINISTRACIÓN PÚBLICA","index":3,"n_rows":44,"n_cols":9,"rows_kept":44,"cut":false,"hidden":false,"merged":[[0,0,0,5],[1,0,1,5],[3,0,4,0],[3,1,4,1],[3,2,3,4],[3,5,4,5]]}
["PRIORIZACIÓN DE TRÁMITES ADMINISTRATIVOS"]
["COSTOS PARA LA ADMINISTRACIÓN PÚBLICA"]
[]
["IDENTIFICADOR","TRÁMITE","INSUMOS PARA COSTO",null,null,"COSTO PARA LA ADM. PÚBLICA",null,"SBU",400]
[null,null,"TIEMPO (HORAS)","COSTO PERSONAL","COSTO RECURSOS"]
["IGM-005-02-01","Acceso a la Red de Monitoreo Continuo GNSS (Global Navigation Satellite System) del Ecuador",26,{"$f":"C6*$I$4/160","v":65},1200,{"$f":"D6+E6","v":1265}]
["IGM-006-03-01","Asesoramiento y/o asistencia técnica en el ámbito de la infraestructura de datos espaciales, cartográfico, geográfico.",354,{"$f":"C7*$I$4/160","v":885},4000,{"$f":"D7+E7","v":4885}]
["IGM-009-03-01","Atención a consultas de mapoteca para estudiantes, investigadores, docentes y público en general",7,17.5,39.76,57.26]
["IGM-010-02-01","Fiscalización de proyectos cartográficos dirigidos a instituciones de la administración pública, gobiernos seccionales y empresas privadas.",744,1860,1300,3160]
["IGM-006-01-03","Generación de bases de datos geográfica temática.",120,300,4000,4300]
["IGM-006-01-02","Generación de cartografía temática militar.",80,200,4000,4200]
["IGM-006-02-01","Generación de la base cartográfica oficial del país a escalas medianas y pequeñas.",104,260,4000,4260]
["IGM-006-01-01","Generación del estudio geográfico para sector público y privado",120,300,4000,4300]
["IGM-009-03-02","Información de cartografía histórica y bienes culturales para estudiantes, investigadores, docentes y público en general",10,25,400,425]
["IGM-010-01-01","Pronunciamiento técnico para ejecutar trabajos cartográficos, internación de equipos y aeronaves para personas naturales o jurídicas.",75,187.5,1200,1387.5]
["IGM-009-01-02","Talleres educativos relacionados con de las ciencias astronómicas y de la tierra",5,12.5,400,412.5]
["IGM-006-04-01","Transferencia de conocimiento cartográfico - geográfico para el ámbito militar.",118,295,4000,4295]
["IGM-006-04-02","Transferencia de conocimiento en el desarrollo de infraestructura de datos espaciales para el ámbito civil.",118,295,4000,4295]
["IGM-001-02-02","Emisión de datos e información terrestre no reservada",5,12.5,1500,1512.5]
["IGM-001-01-02","Emisión de datos e información terrestre no reservada para el Estado",5,12.5,1500,1512.5]
["IGM-001-02-01","Emisión de datos e información terrestre reservada",6,15,1500,1515]
["IGM-001-01-01","Emisión de datos e información terrestre reservada para el Estado",6,15,1500,1515]
["IGM-003-01-01","Asesoramiento, asistencia y desarrollo de procesos geodésicos - control horizontal (levantamientos, replanteos y fiscalización) para el desarrollo, defensa y seguridad requeridos por el Estado, personas naturales y jurídicas",165,412.5,2500,2912.5]
["IGM-003-02-01","Asesoramiento, asistencia y desarrollo de procesos geodésicos - control vertical (levantamientos, replanteos y fiscalización) para el desarrollo, defensa y seguridad requeridos por el Estado, personas naturales y jurídicas",165,412.5,2500,2912.5]
["IGM-003-03-01","Asesoramiento, asistencia y desarrollo de procesos geodésicos - gravimetría (levantamientos, replanteos y fiscalización) para el desarrollo, defensa y seguridad requeridos por el Estado, personas naturales y jurídicas",165,412.5,2500,2912.5]
["IGM-004-01-02","Emisión de cartografía, imágenes y modelos digitales No Reservada para el Estado",55,137.5,4000,4137.5]
["IGM-004-02-02","Emisión de cartografía, imágenes y modelos digitales no reservadas para personas naturales o jurídicas",55,137.5,4000,4137.5]
["IGM-004-01-01","Emisión de cartografía, imágenes y modelos digitales Reservadas para el Estado",165,412.5,4000,4412.5]
["IGM-004-02-01","Emisión de cartografía, imágenes y modelos digitales reservadas para personas naturales o jurídicas",56,140,4000,4140]
["IGM-008-01-04","Emisión de material cartográfico de áreas no reservadas, impreso y/o digital para el sector público, privado.",10,25,1500,1525]
["IGM-008-01-03","Emisión de material cartográfico de áreas reservadas, impreso y/o digital para el sector público, privado.",10,25,1500,1525]
["IGM-002-03-02","Autorización para realizar publicaciones de documentos cartográficos, temáticos y geográficos",11,27.5,86.3,113.8]
["IGM-002-03-01","Autorización para trabajos cartográficos",11,27.5,86.3,113.8]
["IGM-002-02-02","Registro para realizar publicaciones cartográficas, temáticas y geográficas - Personas Jurídicas",11,27.5,86.3,113.8]
["IGM-002-02-01","Registro para realizar publicaciones cartográficas, temáticas y geográficas - Personas Naturales",11,27.5,86.3,113.8]
["IGM-002-01-02","Registro para realizar trabajos cartográficos, temáticos y geográficos - Personas Jurídicas",11,27.5,86.3,113.8]
["IGM-002-01-01","Registro para realizar trabajos cartográficos, temáticos y geográficos - Personas Naturales",11,27.5,86.3,113.8]
["NO APLICA","Atención de solicitudes de acceso a la información pública",3,7.5,5,12.5]
["IGM-007-01-02","Documentos de seguridad utilizados en administración pública y/o privada.",354,885,391.98,1276.98]
["IGM-007-02-01","Especies Valoradas utilizadas en Administración Pública",357,892.5,1500,2392.5]
["IGM-007-03-01","Tarjetas Sintéticas de Seguridad utilizadas en Administración Pública y/o Privada.",354,885,300,1185]
["IGM-005-01-01","Información cartográfica-geográfica en línea (Escalas liberadas 1:1000.000, 1:250.000, 1:50.000)",26,65,1200,1265]
["IGM-009-01-01","Exposiciones y/o recorridos guiados relacionados con de las ciencias astronómicas y de la tierra",5,12.5,400,412.5]
["IGM-009-01-03","Proyecciones audiovisuales relacionadas con las ciencias astronómicas y de la tierra",4,10,400,410]

{"sheet":"RESUMEN DE COSTOS AP","index":4,"n_rows":43,"n_cols":4,"rows_kept":43,"cut":false,"hidden":false,"merged":[[0,0,0,5],[1,0,1,5]]}
["PRIORIZACIÓN DE TRÁMITES ADMINISTRATIVOS"]
["COSTOS PARA LA ADMINISTRACIÓN PÚBLICA"]
[]
["IDENTIFICADOR","TRÁMITE","COSTO PARA LA ADM. PÚBLICA","PUNTUACIÓN"]
["IGM-005-02-01","Acceso a la Red de Monitoreo Continuo GNSS (Global Navigation Satellite System) del Ecuador",1265,5]
["IGM-006-03-01","Asesoramiento y/o asistencia técnica en el ámbito de la infraestructura de datos espaciales, cartográfico, geográfico.",4885,5]
["IGM-009-03-01","Atención a consultas de mapoteca para estudiantes, investigadores, docentes y público en general",57.26,5]
["IGM-010-02-01","Fiscalización de proyectos cartográficos dirigidos a instituciones de la administración pública, gobiernos seccionales y empresas privadas.",3160,5]
["IGM-006-01-03","Generación de bases de datos geográfica temática.",4300,5]
["IGM-006-01-02","Generación de cartografía temática militar.",4200,5]
["IGM-006-02-01","Generación de la base cartográfica oficial del país a escalas medianas y pequeñas.",4260,5]
["IGM-006-01-01","Generación del estudio geográfico para sector público y privado",4300,5]
["IGM-009-03-02","Información de cartografía histórica y bienes culturales para estudiantes, investigadores, docentes y público en general",425,5]
["IGM-010-01-01","Pronunciamiento técnico para ejecutar trabajos cartográficos, internación de equipos y aeronaves para personas naturales o jurídicas.",1387.5,5]
["IGM-009-01-02","Talleres educativos relacionados con de las ciencias astronómicas y de la tierra",412.5,5]
["IGM-006-04-01","Transferencia de conocimiento cartográfico - geográfico para el ámbito militar.",4295,5]
["IGM-006-04-02","Transferencia de conocimiento en el desarrollo de infraestructura de datos espaciales para el ámbito civil.",4295,5]
["IGM-001-02-02","Emisión de datos e información terrestre no reservada",1512.5,5]
["IGM-001-01-02","Emisión de datos e información terrestre no reservada para el Estado",1512.5,5]
["IGM-001-02-01","Emisión de datos e información terrestre reservada",1515,5]
["IGM-001-01-01","Emisión de datos e información terrestre reservada para el Estado",1515,5]
["IGM-003-01-01","Asesoramiento, asistencia y desarrollo de procesos geodésicos - control horizontal (levantamientos, replanteos y fiscalización) para el desarrollo, defensa y seguridad requeridos por el Estado, personas naturales y jurídicas",2912.5,5]
["IGM-003-02-01","Asesoramiento, asistencia y desarrollo de procesos geodésicos - control vertical (levantamientos, replanteos y fiscalización) para el desarrollo, defensa y seguridad requeridos por el Estado, personas naturales y jurídicas",2912.5,10]
["IGM-003-03-01","Asesoramiento, asistencia y desarrollo de procesos geodésicos - gravimetría (levantamientos, replanteos y fiscalización) para el desarrollo, defensa y seguridad requeridos por el Estado, personas naturales y jurídicas",2912.5,10]
["IGM-004-01-02","Emisión de cartografía, imágenes y modelos digitales No Reservada para el Estado",4137.5,10]
["IGM-004-02-02","Emisión de cartografía, imágenes y modelos digitales no reservadas para personas naturales o jurídicas",4137.5,10]
["IGM-004-01-01","Emisión de cartografía, imágenes y modelos digitales Reservadas para el Estado",4412.5,10]
["IGM-004-02-01","Emisión de cartografía, imágenes y modelos digitales reservadas para personas naturales o jurídicas",4140,10]
["IGM-008-01-04","Emisión de material cartográfico de áreas no reservadas, impreso y/o digital para el sector público, privado.",1525,10]
["IGM-008-01-03","Emisión de material cartográfico de áreas reservadas, impreso y/o digital para el sector público, privado.",1525,10]
["IGM-002-03-02","Autorización para realizar publicaciones de documentos cartográficos, temáticos y geográficos",113.8,20]
["IGM-002-03-01","Autorización para trabajos cartográficos",113.8,20]
["IGM-002-02-02","Registro para realizar publicaciones cartográficas, temáticas y geográficas - Personas Jurídicas",113.8,20]
["IGM-002-02-01","Registro para realizar publicaciones cartográficas, temáticas y geográficas - Personas Naturales",113.8,20]
["IGM-002-01-02","Registro para realizar trabajos cartográficos, temáticos y geográficos - Personas Jurídicas",113.8,20]
["IGM-002-01-01","Registro para realizar trabajos cartográficos, temáticos y geográficos - Personas Naturales",113.8,20]
["NO APLICA","Atención de solicitudes de acceso a la información pública",12.5,20]
["IGM-007-01-02","Documentos de seguridad utilizados en administración pública y/o privada.",1276.98,20]
["IGM-007-02-01","Especies Valoradas utilizadas en Administración Pública",2392.5,20]
["IGM-007-03-01","Tarjetas Sintéticas de Seguridad utilizadas en Administración Pública y/o Privada.",1185,20]
["IGM-005-01-01","Información cartográfica-geográfica en línea (Escalas liberadas 1:1000.000, 1:250.000, 1:50.000)",1265,20]
["IGM-009-01-01","Exposiciones y/o recorridos guiados relacionados con de las ciencias astronómicas y de la tierra",412.5,20]
["IGM-009-01-03","Proyecciones audiovisuales relacionadas con las ciencias astronómicas y de la tierra",410,20]

{"sheet":"AUXILIAR COSTO ADMINISTRACIÓN","index":5,"n_rows":401,"n_cols":8,"rows_kept":401,"cut":false,"hidden":false,"merged":[[340,1,340,2],[340,6,340,7],[360,1,360,2],[360,6,360,7],[382,1,382,2],[280,1,280,2],[280,6,280,7],[300,1,300,2],[300,6,300,7],[320,1,320,2],[320,6,320,7],[220,1,220,2],[220,6,220,7],[240,1,240,2],[240,6,240,7],[260,1,260,2],[260,6,260,7],[160,1,160,2],[160,6,160,7],[180,1,180,2],[180,6,180,7],[200,1,200,2],[200,6,200,7],[100,1,100,2],[100,6,100,7],[120,1,120,2],[120,6,120,7],[140,1,140,2],[140,6,140,7],[40,1,40,2],[40,6,40,7],[60,1,60,2],[60,6,60,7],[80,1,80,2],[80,6,80,7],[0,1,0,2],[0,6,0,7],[20,1,20,2],[20,6,20,7]]}
["TRÁMITE:","IGM-001-01-01: Emisión de datos e información terrestre reservada para el Estado",null,null,null,"TRÁMITE:","IGM-001-01-02: Emisión de datos e información terrestre no reservada para el Estado"]
["NO.","ACTIVIDAD","TIEMPO (HORAS)",null,null,"NO.","ACTIVIDAD","TIEMPO (HORAS)"]
[1,"Atención del pedido requerido",1,null,null,1,"Atención del pedido requerido",1]
[2,"Revisión de la documentación habilitante entregado",1,null,null,2,"Revisión de la disponibilidad de la información ",1]
[3,"Revisión de la disponibilidad de la información ",1,null,null,3,"Coordinación con el área técnica (en caso excepcional )",2]
[4,"Coordinación con el área técnica (en caso excepcional )",2,null,null,4,"Entrega del pedido ",1]
[5,"Entrega del pedido ",1,null,null,5]
[6,null,null,null,null,6]
[7,null,null,null,null,7]
[8,null,null,null,null,8]
[9,null,null,null,null,9]
[10,null,null,null,null,10]
[11,null,null,null,null,11]
[12,null,null,null,null,12]
[13,null,null,null,null,13]
[14,null,null,null,null,14]
[15,null,null,null,null,15]
[]
[null,"SUMATORIA ACTIVIDADES",{"$f":"SUM(C3:C18)","v":6},null,null,null,"SUMATORIA ACTIVIDADES",{"$f":"SUM(H3:H18)","v":5}]
[]
["TRÁMITE:","IGM-001-02-01: Emisión de datos e información terrestre reservada",null,null,null,"TRÁMITE:","IGM-001-02-02: Emisión de datos e información terrestre no reservada"]
["NO.","ACTIVIDAD","TIEMPO (HORAS)",null,null,"NO.","ACTIVIDAD","TIEMPO (HORAS)"]
[1,"Atención del pedido requerido",1,null,null,1,"Atención del pedido requerido",1]
[2,"Revisión de la documentación habilitante entregado",1,null,null,2,"Revisión de la disponibilidad de la información ",1]
[3,"Revisión de la disponibilidad de la información ",1,null,null,3,"Coordinación con el área técnica (en caso excepcional )",2]
[4,"Coordinación con el área técnica (en caso excepcional )",2,null,null,4,"Entrega del pedido ",1]
[5,"Entrega del pedido ",1,null,null,5]
[6,null,null,null,null,6]
[7,null,null,null,null,7]
[8,null,null,null,null,8]
[9,null,null,null,null,9]
[10,null,null,null,null,10]
[11,null,null,null,null,11]
[12,null,null,null,null,12]
[13,null,null,null,null,13]
[14,null,null,null,null,14]
[15,null,null,null,null,15]
[]
[null,"SUMATORIA ACTIVIDADES",{"$f":"SUM(C23:C38)","v":6},null,null,null,"SUMATORIA ACTIVIDADES",{"$f":"SUM(H23:H38)","v":5}]
[]
["TRÁMITE:","IGM-002-01-01: Registro para realizar trabajos cartográficos, temáticos y geográficos - Personas Naturales",null,null,null,"TRÁMITE:","IGM-002-01-02: Registro para realizar trabajos cartográficos, temáticos y geográficos - Personas Jurídicas"]
["NO.","ACTIVIDAD","TIEMPO (HORAS)",null,null,"NO.","ACTIVIDAD","TIEMPO (HORAS)"]
[1,"Atención del pedido requerido",1,null,null,1,"Atención del pedido requerido",1]
[2,"Evalúa información registrada y emite registro de autorización de trabajos cartográficos - área técnica",8,null,null,2,"Evalúa información registrada y emite registro de autorización de trabajos cartográficos - área técnica",8]
[3,"Realizar la cotización ",1,null,null,3,"Realizar la cotización ",1]
[4,"Entrega de la especie de registro",1,null,null,4,"Entrega de la especie de registro",1]
[5,null,null,null,null,5]
[6,null,null,null,null,6]
[7,null,null,null,null,7]
[8,null,null,null,null,8]
[9,null,null,null,null,9]
[10,null,null,null,null,10]
[11,null,null,null,null,11]
[12,null,null,null,null,12]
[13,null,null,null,null,13]
[14,null,null,null,null,14]
[15,null,null,null,null,15]
[]
[null,"SUMATORIA ACTIVIDADES",{"$f":"SUM(C43:C58)","v":11},null,null,null,"SUMATORIA ACTIVIDADES",{"$f":"SUM(H43:H58)","v":11}]
[]
["TRÁMITE:","IGM-002-02-01: Registro para realizar publicaciones cartográficas, temáticas y geográficas - Personas Naturales",null,null,null,"TRÁMITE:","IGM-002-02-02: Registro para realizar publicaciones cartográficas, temáticas y geográficas - Personas Jurídicas"]
["NO.","ACTIVIDAD","TIEMPO (HORAS)",null,null,"NO.","ACTIVIDAD","TIEMPO (HORAS)"]
[1,"Atención del pedido requerido",1,null,null,1,"Atención del pedido requerido",1]
[2,"Evalúa información registrada y emite registro de autorización de trabajos cartográficos - área técnica",8,null,null,2,"Evalúa información registrada y emite registro de autorización de trabajos cartográficos - área técnica",8]
[3,"Realizar la cotización ",1,null,null,3,"Realizar la cotización ",1]
[4,"Entrega de la especie de registro",1,null,null,4,"Entrega de la especie de registro",1]
[5,null,null,null,null,5]
[6,null,null,null,null,6]
[7,null,null,null,null,7]
[8,null,null,null,null,8]
[9,null,null,null,null,9]
[10,null,null,null,null,10]
[11,null,null,null,null,11]
[12,null,null,null,null,12]
[13,null,null,null,null,13]
[14,null,null,null,null,14]
[15,null,null,null,null,15]
[]
[null,"SUMATORIA ACTIVIDADES",{"$f":"SUM(C63:C78)","v":11},null,null,null,"SUMATORIA ACTIVIDADES",{"$f":"SUM(H63:H78)","v":11}]
[]
["TRÁMITE:","IGM-002-03-01: Autorización para trabajos cartográficos",null,null,null,"TRÁMITE:","IGM-002-03-02: Autorización para realizar publicaciones de documentos cartográficos, temáticos y geográficos"]
["NO.","ACTIVIDAD","TIEMPO (HORAS)",null,null,"NO.","ACTIVIDAD","TIEMPO (HORAS)"]
[1,null,1,null,null,1,"Atención del pedido requerido",1]
[2,"Evalúa información registrada y emite registro de autorización de trabajos cartográficos - área técnica",8,null,null,2,"Evalúa información registrada y emite registro de autorización de trabajos cartográficos - área técnica",8]
[3,"Realizar la cotización ",1,null,null,3,"Realizar la cotización ",1]
[4,"Entrega de la especie de registro",1,null,null,4,"Entrega de la especie de registro",1]
[5,null,null,null,null,5]
[6,null,null,null,null,6]
[7,null,null,null,null,7]
[8,null,null,null,null,8]
[9,null,null,null,null,9]
[10,null,null,null,null,10]
[11,null,null,null,null,11]
[12,null,null,null,null,12]
[13,null,null,null,null,13]
[14,null,null,null,null,14]
[15,null,null,null,null,15]
[]
[null,"SUMATORIA ACTIVIDADES",{"$f":"SUM(C83:C98)","v":11},null,null,null,"SUMATORIA ACTIVIDADES",{"$f":"SUM(H83:H98)","v":11}]
[]
["TRÁMITE:","IGM-003-01-01: Asesoramiento, asistencia y desarrollo de procesos geodésicos - control horizontal (levantamientos, replanteos y fiscalización) para el desarrollo, defensa y seguridad requeridos por el Estado, personas naturales y jurídicas",null,null,null,"TRÁMITE:","IGM-003-02-01:Asesoramiento, asistencia y desarrollo de procesos geodésicos - control vertical (levantamientos, replanteos y fiscalización) para el desarrollo, defensa y seguridad requeridos por el Estado, personas naturales y jurídicas"]
["NO.","ACTIVIDAD","TIEMPO (HORAS)",null,null,"NO.","ACTIVIDAD","TIEMPO (HORAS)"]
[1,"Atención del pedido requerido",1,null,null,1,"Atención del pedido requerido",1]
[2,"Analizar información recibida por el usuario",3,null,null,2,"Analizar información recibida por el usuario",3]
[3,"Solicitar a la Gestión Cartográfica se realice el presupuesto, tiempos de entrega y costo.",120,null,null,3,"Solicitar a la Gestión Cartográfica se realice el presupuesto, tiempos de entrega y costo.",120]
[4,"Realizar el presupuesto, tiempos de entrega y costos de la cotización.",40,null,null,4,"Realizar el presupuesto, tiempos de entrega y costos de la cotización.",40]
[5,"Realizar cotización y entrega de requerimiento ",1,null,null,5,"Realizar cotización y entrega de requerimiento ",1]
[6,null,null,null,null,6]
[7,null,null,null,null,7]
[8,null,null,null,null,8]
[9,null,null,null,null,9]
[10,null,null,null,null,10]
[11,null,null,null,null,11]
[12,null,null,null,null,12]
[13,null,null,null,null,13]
[14,null,null,null,null,14]
[15,null,null,null,null,15]
[]
[null,"SUMATORIA ACTIVIDADES",{"$f":"SUM(C103:C118)","v":165},null,null,null,"SUMATORIA ACTIVIDADES",{"$f":"SUM(H103:H118)","v":165}]
[]
["TRÁMITE:","IGM-003-03-01: Asesoramiento, asistencia y desarrollo de procesos geodésicos - gravimetría (levantamientos, replanteos y fiscalización) para el desarrollo, defensa y seguridad requeridos por el Estado, personas naturales y jurídicas",null,null,null,"TRÁMITE:","IGM-004-01-01: Emisión de cartografía, imágenes y modelos digitales Reservadas para el Estado"]
["NO.","ACTIVIDAD","TIEMPO (HORAS)",null,null,"NO.","ACTIVIDAD","TIEMPO (HORAS)"]
[1,"Atención del pedido requerido",1,null,null,1,"Atención del pedido requerido",1]
[2,"Analizar información recibida por el usuario",3,null,null,2,"Analizar información recibida por el usuario",3]
[3,"Solicitar a la Gestión Cartográfica se realice el presupuesto, tiempos de entrega y costo.",120,null,null,3,"Solicitar a la Gestión Cartográfica se realice el presupuesto, tiempos de entrega y costo.",120]
[4,"Realizar el presupuesto, tiempos de entrega y costos de la cotización.",40,null,null,4,"Realizar el presupuesto, tiempos de entrega y costos de la cotización.",40]
[5,"Realizar cotización y entrega de requerimiento ",1,null,null,5,"Realizar cotización y entrega de requerimiento ",1]
[6,null,null,null,null,6]
[7,null,null,null,null,7]
[8,null,null,null,null,8]
[9,null,null,null,null,9]
[10,null,null,null,null,10]
[11,null,null,null,null,11]
[12,null,null,null,null,12]
[13,null,null,null,null,13]
[14,null,null,null,null,14]
[15,null,null,null,null,15]
[]
[null,"SUMATORIA ACTIVIDADES",{"$f":"SUM(C123:C138)","v":165},null,null,null,"SUMATORIA ACTIVIDADES",{"$f":"SUM(H123:H138)","v":165}]
[]
["TRÁMITE:","IGM-004-01-02: Emisión de cartografía, imágenes y modelos digitales No Reservada para el Estado",null,null,null,"TRÁMITE:","IGM-004-02-01: Emisión de cartografía, imágenes y modelos digitales reservadas para personas naturales o jurídicas"]
["NO.","ACTIVIDAD","TIEMPO (HORAS)",null,null,"NO.","ACTIVIDAD","TIEMPO (HORAS)"]
[1,"Atención del pedido requerido",1,null,null,1,"Atención del pedido requerido",1]
[2,"Analizar información recibida por el usuario ",2,null,null,2,"Analizar información recibida por el usuario ",2]
[3,"Coordinación con el área técnica el requerimiento del usuario",3,null,null,3,"Revisión de la documentación habilitante",1]
[4,"Entrega de la infromación por parte del área técnica ",48,null,null,4,"Coordinación con el área técnica el requerimiento del usuario",3]
[5,"Entrega del requerimiento al usuario ",1,null,null,5,"Entrega de la infromación por parte del área técnica ",48]
[6,null,null,null,null,6,"Entrega del requerimiento al usuario ",1]
[7,null,null,null,null,7]
[8,null,null,null,null,8]
[9,null,null,null,null,9]
[10,null,null,null,null,10]
[11,null,null,null,null,11]
[12,null,null,null,null,12]
[13,null,null,null,null,13]
[14,null,null,null,null,14]
[15,null,null,null,null,15]
[]
[null,"SUMATORIA ACTIVIDADES",{"$f":"SUM(C143:C158)","v":55},null,null,null,"SUMATORIA ACTIVIDADES",{"$f":"SUM(H143:H158)","v":56}]
[]
["TRÁMITE:","IGM-004-02-02: Emisión de cartografía, imágenes y modelos digitales no reservadas para personas naturales o jurídicas",null,null,null,"TRÁMITE:","IGM-005-01-01: Información cartográfica-geográfica en línea (Escalas liberadas 1:1000.000, 1:250.000, 1:50.000)"]
["NO.","ACTIVIDAD","TIEMPO (HORAS)",null,null,"NO.","ACTIVIDAD","TIEMPO (HORAS)"]
[1,"Atención del pedido requerido",1,null,null,1,"Revisión de la información del Geoportal institucional",2]
[2,"Analizar información recibida por el usuario ",2,null,null,2,"Actualización de la información del Geoportal institucional",8]
[3,"Coordinación con el área técnica el requerimiento del usuario",3,null,null,3,"Mantenimiento de la plataforma GEOPORTAL",16]
[4,"Entrega de la infromación por parte del área técnica ",48,null,null,4]
[5,"Entrega del requerimiento al usuario ",1,null,null,5]
[6,null,null,null,null,6]
[7,null,null,null,null,7]
[8,null,null,null,null,8]
[9,null,null,null,null,9]
[10,null,null,null,null,10]
[11,null,null,null,null,11]
[12,null,null,null,null,12]
[13,null,null,null,null,13]
[14,null,null,null,null,14]
[15,null,null,null,null,15]
[]
[null,"SUMATORIA ACTIVIDADES",{"$f":"SUM(C163:C178)","v":55},null,null,null,"SUMATORIA ACTIVIDADES",{"$f":"SUM(H163:H178)","v":26}]
[]
["TRÁMITE:","IGM-005-02-01: Acceso a la Red de Monitoreo Continuo GNSS (Global Navigation Satellite System) del Ecuador",null,null,null,"TRÁMITE:","IGM-006-01-01: Generación del estudio geográfico para sector público y privado"]
["NO.","ACTIVIDAD","TIEMPO (HORAS)",null,null,"NO.","ACTIVIDAD","TIEMPO (HORAS)"]
[1,"Revisión de la información del Geoportal institucional",2,null,null,1,"Atención del pedido requerido",1]
[2,"Actualización de la información del Geoportal institucional",8,null,null,2,"Analizar información recibida por el usuario ",2]
[3,"Mantenimiento de la plataforma GEOPORTAL",16,null,null,3,"Coordinación con el área técnica el requerimiento del usuario",24]
[4,null,null,null,null,4,"Elaborar la cotización del requerimiento",1]
[5,null,null,null,null,5,"Firma del contrato ",40]
[6,null,null,null,null,6,"Entrega de la información por parte del área técnica ",50]
[7,null,null,null,null,7,"Entrega del requerimiento al usuario ",2]
[8,null,null,null,null,8]
[9,null,null,null,null,9]
[10,null,null,null,null,10]
[11,null,null,null,null,11]
[12,null,null,null,null,12]
[13,null,null,null,null,13]
[14,null,null,null,null,14]
[15,null,null,null,null,15]
[]
[null,"SUMATORIA ACTIVIDADES",{"$f":"SUM(C183:C198)","v":26},null,null,null,"SUMATORIA ACTIVIDADES",{"$f":"SUM(H183:H198)","v":120}]
[]
["TRÁMITE:","IGM-006-01-02: Generación de cartografía temática militar.",null,null,null,"TRÁMITE:","IGM-006-01-03: Generación de bases de datos geográfica temática."]
["NO.","ACTIVIDAD","TIEMPO (HORAS)",null,null,"NO.","ACTIVIDAD","TIEMPO (HORAS)"]
[1,"Atención del pedido requerido",1,null,null,1,"Atención del pedido requerido",1]
[2,"Analizar información recibida por el usuario ",2,null,null,2,"Analizar información recibida por el usuario ",2]
[3,"Coordinación con el área técnica el requerimiento del usuario",24,null,null,3,"Coordinación con el área técnica el requerimiento del usuario",24]
[4,"Elaborar la cotización del requerimiento",1,null,null,4,"Elaborar la cotización del requerimiento",1]
[5,"Entrega de la información por parte del área técnica ",50,null,null,5,"Firma del contrato ",40]
[6,"Entrega del requerimiento al usuario ",2,null,null,6,"Entrega de la información por parte del área técnica ",50]
[7,null,null,null,null,7,"Entrega del requerimiento al usuario ",2]
[8,null,null,null,null,8]
[9,null,null,null,null,9]
[10,null,null,null,null,10]
[11,null,null,null,null,11]
[12,null,null,null,null,12]
[13,null,null,null,null,13]
[14,null,null,null,null,14]
[15,null,null,null,null,15]
[]
[null,"SUMATORIA ACTIVIDADES",{"$f":"SUM(C203:C218)","v":80},null,null,null,"SUMATORIA ACTIVIDADES",{"$f":"SUM(H203:H218)","v":120}]
[]
["TRÁMITE:","IGM-006-02-01: Generación de la base cartográfica oficial del país a escalas medianas y pequeñas.",null,null,null,"TRÁMITE:","IGM-006-03-01: Asesoramiento y/o asistencia técnica en el ámbito de la infraestructura de datos espaciales, cartográfico, geográfico."]
["NO.","ACTIVIDAD","TIEMPO (HORAS)",null,null,"NO.","ACTIVIDAD","TIEMPO (HORAS)"]
[1,"Atención del pedido requerido",1,null,null,1,"Atención del pedido requerido",1]
[2,"Analizar información recibida por el usuario ",2,null,null,2,"Analizar información recibida por el usuario ",2]
[3,"Coordinación con el área técnica el requerimiento del usuario",24,null,null,3,"Coordinación con el área técnica el requerimiento del usuario",24]
[4,"Elaborar la cotización ",1,null,null,4,"Elaborar la cotización ",1]
[5,"Firma del contrato ",24,null,null,5,"Firma del contrato ",24]
[6,"Ejecuta el asesoramiento y/o asistencia técnica en el ámbito de la infraestructura de datos espaciales.",50,null,null,6,"Ejecuta el asesoramiento y/o asistencia técnica en el ámbito de la infraestructura de datos espaciales.",300]
[7,"Entrega del requerimiento al usuario ",2,null,null,7,"Entrega del requerimiento al usuario ",2]
[8,null,null,null,null,8]
[9,null,null,null,null,9]
[10,null,null,null,null,10]
[11,null,null,null,null,11]
[12,null,null,null,null,12]
[13,null,null,null,null,13]
[14,null,null,null,null,14]
[15,null,null,null,null,15]
[]
[null,"SUMATORIA ACTIVIDADES",{"$f":"SUM(C223:C238)","v":104},null,null,null,"SUMATORIA ACTIVIDADES",{"$f":"SUM(H223:H238)","v":354}]
[]
["TRÁMITE:","IGM-006-04-01: Transferencia de conocimiento cartográfico - geográfico para el ámbito militar.",null,null,null,"TRÁMITE:","IGM-006-04-02: Transferencia de conocimiento en el desarrollo de infraestructura de datos espaciales para el ámbito civil."]
["NO.","ACTIVIDAD","TIEMPO (HORAS)",null,null,"NO.","ACTIVIDAD","TIEMPO (HORAS)"]
[1,"Atención del pedido requerido",1,null,null,1,"Atención del pedido requerido",1]
[2,"Analizar información recibida por el usuario ",2,null,null,2,"Analizar información recibida por el usuario ",2]
[3,"Coordinación con el área técnica el requerimiento del usuario",8,null,null,3,"Coordinación con el área técnica el requerimiento del usuario",8]
[4,"Elaborar la cotización ",1,null,null,4,"Elaborar la cotización ",1]
[5,"Firma del contrato ",24,null,null,5,"Firma del contrato ",24]
[6,"Transferir el conocimiento en el desarrollo de infraestructura de datos espaciales y ámbito cartográfico- geográfico.",80,null,null,6,"Transferir el conocimiento en el desarrollo de infraestructura de datos espaciales y ámbito cartográfico- geográfico.",80]
[7,"Entrega del requerimiento al usuario ",2,null,null,7,"Entrega del requerimiento al usuario ",2]
[8,null,null,null,null,8]
[9,null,null,null,null,9]
[10,null,null,null,null,10]
[11,null,null,null,null,11]
[12,null,null,null,null,12]
[13,null,null,null,null,13]
[14,null,null,null,null,14]
[15,null,null,null,null,15]
[]
[null,"SUMATORIA ACTIVIDADES",{"$f":"SUM(C243:C258)","v":118},null,null,null,"SUMATORIA ACTIVIDADES",{"$f":"SUM(H243:H258)","v":118}]
[]
["TRÁMITE:","IGM-007-01-02: Documentos de seguridad utilizados en administración pública y/o privada.",null,null,null,"TRÁMITE:","IGM-007-02-01: Especies Valoradas utilizadas en Administración Pública"]
["NO.","ACTIVIDAD","TIEMPO (HORAS)",null,null,"NO.","ACTIVIDAD","TIEMPO (HORAS)"]
[1,"Atención del pedido requerido",1,null,null,1,"Atención del pedido requerido",1]
[2,"Analizar información recibida por el usuario ",2,null,null,2,"Analizar información recibida por el usuario ",2]
[3,"Coordinación con el área técnica el requerimiento del usuario",8,null,null,3,"Coordinación con el área técnica el requerimiento del usuario",8]
[4,"Elaborar la cotización ",1,null,null,4,"Elaborar la cotización ",1]
[5,"Firma del contrato ",24,null,null,5,"Firma del contrato ",24]
[6,"Ingreso de la orden de producción",3,null,null,6,"Ingreso de la orden de producción",3]
[7,"Coordinación tiempo de entrega de artes (diseños)",3,null,null,7,"Coordinación tiempo de entrega de artes (diseños)",3]
[8,"Aprobación artes (diseño) con el cliente",4,null,null,8,"Aprobación artes (diseño) con el cliente",4]
[9,"Impresión de documentos de seguridad",300,null,null,9,"Impresión de especies valoradas",300]
[10,"Entrega acta recepción ",8,null,null,10,"Entrega acta recepción ",8]
[11,null,null,null,null,11]
[12,null,null,null,null,12]
[13,null,null,null,null,13]
[14,null,null,null,null,14]
[15,null,null,null,null,15]
[]
[null,"SUMATORIA ACTIVIDADES",{"$f":"SUM(C263:C278)","v":354},null,null,null,"SUMATORIA ACTIVIDADES",{"$f":"SUM(H263:H278)","v":354}]
[]
["TRÁMITE:","IGM-007-03-01: Tarjetas Sintéticas de Seguridad utilizadas en Administración Pública y/o Privada.",null,null,null,"TRÁMITE:","IGM-008-01-03: Emisión de material cartográfico de áreas reservadas, impreso y/o digital para el sector público, privado."]
["NO.","ACTIVIDAD","TIEMPO (HORAS)",null,null,"NO.","ACTIVIDAD","TIEMPO (HORAS)"]
[1,"Atención del pedido requerido",1,null,null,1,"Atención del pedido requerido",1]
[2,"Analizar información recibida por el usuario ",2,null,null,2,"Analizar información recibida por el usuario ",2]
[3,"Coordinación con el área técnica el requerimiento del usuario",8,null,null,3,"Coordinación con el área técnica el requerimiento del usuario",3]
[4,"Elaborar la cotización ",1,null,null,4,"Revisar la información existente en el repositorio ",1]
[5,"Firma del contrato ",24,null,null,5,"Elaborar la cotización ",1]
[6,"Ingreso de la orden de producción",3,null,null,6,"Entrega del requerimiento al usuario ",2]
[7,"Coordinación tiempo de entrega de artes (diseños)",3,null,null,7]
[8,"Aprobación artes (diseño) con el cliente",4,null,null,8]
[9,"Impresión de tarjetas ",300,null,null,9]
[10,"Entrega acta recepción ",8,null,null,10]
[11,null,null,null,null,11]
[12,null,null,null,null,12]
[13,null,null,null,null,13]
[14,null,null,null,null,14]
[15,null,null,null,null,15]
[]
[null,"SUMATORIA ACTIVIDADES",{"$f":"SUM(C283:C298)","v":354},null,null,null,"SUMATORIA ACTIVIDADES",{"$f":"SUM(H283:H298)","v":10}]
[]
["TRÁMITE:","IGM-008-01-04: Emisión de material cartográfico de áreas no reservadas, impreso y/o digital para el sector público, privado.",null,null,null,"TRÁMITE:","IGM-009-01-01: Exposiciones y/o recorridos guiados relacionados con de las ciencias astronómicas y de la tierra"]
["NO.","ACTIVIDAD","TIEMPO (HORAS)",null,null,"NO.","ACTIVIDAD","TIEMPO (HORAS)"]
[1,"Atención del pedido requerido",1,null,null,1,"Atención del pedido requerido",1]
[2,"Analizar información recibida por el usuario ",2,null,null,2,"Coordinar visita en el calendario, por parte del Centro Cultural",1]
[3,"Coordinación con el área técnica el requerimiento del usuario",3,null,null,3,"Realizar  las exposiciones y recorridos guiados por el personal técnico  ",3]
[4,"Revisar la información existente en el repositorio ",1,null,null,4]
[5,"Elaborar la cotización ",1,null,null,5]
[6,"Entrega del requerimiento al usuario ",2,null,null,6]
[7,null,null,null,null,7]
[8,null,null,null,null,8]
[9,null,null,null,null,9]
[10,null,null,null,null,10]
[11,null,null,null,null,11]
[12,null,null,null,null,12]
[13,null,null,null,null,13]
[14,null,null,null,null,14]
[15,null,null,null,null,15]
[]
[null,"SUMATORIA ACTIVIDADES",{"$f":"SUM(C303:C318)","v":10},null,null,null,"SUMATORIA ACTIVIDADES",{"$f":"SUM(H303:H318)","v":5}]
[]
["TRÁMITE:","IGM-009-01-02: Talleres educativos relacionados con de las ciencias astronómicas y de la tierra",null,null,null,"TRÁMITE:","IGM-009-01-03: Proyecciones audiovisuales relacionadas con las ciencias astronómicas y de la tierra"]
["NO.","ACTIVIDAD","TIEMPO (HORAS)",null,null,"NO.","ACTIVIDAD","TIEMPO (HORAS)"]
[1,"Atención del pedido requerido",1,null,null,1,"Atención del pedido requerido",1]
[2,"Coordinar visita en el calendario, por parte del Centro Cultural",1,null,null,2,"Coordinar visita en el calendario, por parte del Centro Cultural",1]
[3,"Realizar los talleres educativos por el personal técnico  ",3,null,null,3,"Realizar los funciones por el personal técnico  ",2]
[4,null,null,null,null,4]
[5,null,null,null,null,5]
[6,null,null,null,null,6]
[7,null,null,null,null,7]
[8,null,null,null,null,8]
[9,null,null,null,null,9]
[10,null,null,null,null,10]
[11,null,null,null,null,11]
[12,null,null,null,null,12]
[13,null,null,null,null,13]
[14,null,null,null,null,14]
[15,null,null,null,null,15]
[]
[null,"SUMATORIA ACTIVIDADES",{"$f":"SUM(C323:C338)","v":5},null,null,null,"SUMATORIA ACTIVIDADES",{"$f":"SUM(H323:H338)","v":4}]
[]
["TRÁMITE:","IGM-009-03-01: Atención a consultas de mapoteca para estudiantes, investigadores, docentes y público en general",null,null,null,"TRÁMITE:","IGM-009-03-02: Información de cartografía histórica y bienes culturales para estudiantes, investigadores, docentes y público en general"]
["NO.","ACTIVIDAD","TIEMPO (HORAS)",null,null,"NO.","ACTIVIDAD","TIEMPO (HORAS)"]
[1,"Atención del pedido requerido",1,null,null,1,"Atención del pedido requerido",1]
[2,"Revisión de la información requerida ",4,null,null,2,"Revisión de la información requerida ",4]
[3,"Realizar la cotización del pedido",1,null,null,3,"Realizar la cotización del pedido",1]
[4,"Entrega de información ",1,null,null,4,"Entrega de información ",1]
[5,null,null,null,null,5,"Realizar el inventario de los bienes culturales",3]
[6,null,null,null,null,6]
[7,null,null,null,null,7]
[8,null,null,null,null,8]
[9,null,null,null,null,9]
[10,null,null,null,null,10]
[11,null,null,null,null,11]
[12,null,null,null,null,12]
[13,null,null,null,null,13]
[14,null,null,null,null,14]
[15,null,null,null,null,15]
[]
[null,"SUMATORIA ACTIVIDADES",{"$f":"SUM(C343:C358)","v":7},null,null,null,"SUMATORIA ACTIVIDADES",{"$f":"SUM(H343:H358)","v":10}]
[]
["TRÁMITE:","IGM-010-01-01: Pronunciamiento técnico para ejecutar trabajos cartográficos, internación de equipos y aeronaves para personas naturales o jurídicas.",null,null,null,"TRÁMITE:","IGM-010-02-01: Fiscalización de proyectos cartográficos dirigidos a instituciones de la administración pública, gobiernos seccionales y empresas privadas."]
["NO.","ACTIVIDAD","TIEMPO (HORAS)",null,null,"NO.","ACTIVIDAD","TIEMPO (HORAS)"]
[1,"Enviar una copia del oficio de requerimiento hacia la MIDENA",1,null,null,1,"Solicitar el servicio para la supervisión y/ o fiscalización ",1]
[2,"Ingresar solicitud de informe técnico con visto bueno del IGM",16,null,null,2,"Ingresar documentación y enviar a Normativa.",16]
[3,"Analizar información recibida por el usuario",2,null,null,3,"Analizar información recibida por el usuario y solicitar cotización a la Gestión de mercadotecnia.",16]
[4,"Enviar la solicitud por Quipux para identificar si se encuentra en zona de seguridad o reservada el proyecto.",8,null,null,4,"Generar cotización con precios finales.",8]
[5,"Analizar la información recibida por la Gestión de Normativa.",32,null,null,5,"Realizar el presupuesto, tiempos de entrega y costos de la cotización",40]
[6,"Emitir informe técnico con el criterio de aprobación/negación.",16,null,null,6,"Enviar cotización y protocolos de supervisión, fiscalización y modelo de contrato al cliente.",24]
[7,null,null,null,null,7,"Emitir a la Gestión de Mercadotecnia la carta de aceptación de la cotización y tres contratos revisados y/o suscritos.",24]
[8,null,null,null,null,8,"Recibir contrato, revisarlo o ajustarlo en coordinación con las Gestiones de Normativa y Dirección Jurídica.",120]
[9,null,null,null,null,9,"Firmar la suscripción del contrato",8]
[10,null,null,null,null,10,"Pagar un anticipo del valor del contrato y entregar comprobante de pago a la Gestión de Mercadotecnia.",16]
[11,null,null,null,null,11,"Solicitar a la Dirección Financiera el comprobante de ingreso de pago del anticipo ",24]
[12,null,null,null,null,12,"Generar oficio mediante Quipux a la Gestión de Normativa para el inicio de trabajos supervisión y/o fiscalización.",8]
[13,null,null,null,null,13,"Coordinar supervisión del proyecto en base a las características técnicas, emitir informe de supervisión y/o fiscalización y solicitar a las Gestiones Geográfica/ Cartográfica realice la supervisión y/o fiscalización",32]
[14,null,null,null,null,14,"Ejecutar supervisión y/o fiscalización ",240]
[15,null,null,null,null,15,"Emitir informe de supervisión y/o finalización la Gestión Normativa",24]
[null,null,null,null,null,16,"Analizar los resultados del informe, informar estado del proyecto, solicitar a la Gestión de Mercadotecnia realizar el acta de entrega/recepción y emitir oficio al usuario de los resultados del proyecto y/o correcciones.",24]
[null,"SUMATORIA ACTIVIDADES",{"$f":"SUM(C363:C378)","v":75},null,null,17,"Realizar las correcciones en el producto final del proyecto",120]
[null,null,null,null,null,18,"Generar el acta de entrega/ recepción y solicitud de pago de saldo pendiente del contrato.",16]
[null,null,null,null,null,null,"SUMATORIA ACTIVIDADES",{"$f":"SUM(H365:H380)","v":744}]
[]
["TRÁMITE:"," Atención de solicitudes de acceso a la información pública"]
["NO.","ACTIVIDAD","TIEMPO (HORAS)"]
[1,"Llenar formulario de Atención de acceso a la información",3]
[2]
[3]
[4]
[5]
[6]
[7]
[8]
[9]
[10]
[11]
[12]
[13]
[14]
[15]
[]
[null,"SUMATORIA ACTIVIDADES",{"$f":"SUM(C385:C400)","v":3}]

{"sheet":"TIEMPO DE RESPUESTA","index":6,"n_rows":43,"n_cols":4,"rows_kept":43,"cut":false,"hidden":false,"merged":[[0,0,0,3],[1,0,1,3]]}
["PRIORIZACIÓN DE TRÁMITES ADMINISTRATIVOS"]
["TIEMPO DE RESPUESTA"]
[]
["IDENTIFICADOR","TRÁMITE","TIEMPO RESPUESTA (horas laborables)","PUNTUACIÓN"]
["IGM-005-02-01","Acceso a la Red de Monitoreo Continuo GNSS (Global Navigation Satellite System) del Ecuador",1,0]
["IGM-006-03-01","Asesoramiento y/o asistencia técnica en el ámbito de la infraestructura de datos espaciales, cartográfico, geográfico.",160,30]
["IGM-009-03-01","Atención a consultas de mapoteca para estudiantes, investigadores, docentes y público en general",2,0]
["IGM-010-02-01","Fiscalización de proyectos cartográficos dirigidos a instituciones de la administración pública, gobiernos seccionales y empresas privadas.",160,30]
["IGM-006-01-03","Generación de bases de datos geográfica temática.",160,30]
["IGM-006-01-02","Generación de cartografía temática militar.",160,30]
["IGM-006-02-01","Generación de la base cartográfica oficial del país a escalas medianas y pequeñas.",160,30]
["IGM-006-01-01","Generación del estudio geográfico para sector público y privado",160,30]
["IGM-009-03-02","Información de cartografía histórica y bienes culturales para estudiantes, investigadores, docentes y público en general",64,30]
["IGM-010-01-01","Pronunciamiento técnico para ejecutar trabajos cartográficos, internación de equipos y aeronaves para personas naturales o jurídicas.",160,30]
["IGM-009-01-02","Talleres educativos relacionados con de las ciencias astronómicas y de la tierra",2,0]
["IGM-006-04-01","Transferencia de conocimiento cartográfico - geográfico para el ámbito militar.",160,30]
["IGM-006-04-02","Transferencia de conocimiento en el desarrollo de infraestructura de datos espaciales para el ámbito civil.",160,30]
["IGM-001-02-02","Emisión de datos e información terrestre no reservada",160,30]
["IGM-001-01-02","Emisión de datos e información terrestre no reservada para el Estado",160,30]
["IGM-001-02-01","Emisión de datos e información terrestre reservada",160,30]
["IGM-001-01-01","Emisión de datos e información terrestre reservada para el Estado",160,30]
["IGM-003-01-01","Asesoramiento, asistencia y desarrollo de procesos geodésicos - control horizontal (levantamientos, replanteos y fiscalización) para el desarrollo, defensa y seguridad requeridos por el Estado, personas naturales y jurídicas",160,30]
["IGM-003-02-01","Asesoramiento, asistencia y desarrollo de procesos geodésicos - control vertical (levantamientos, replanteos y fiscalización) para el desarrollo, defensa y seguridad requeridos por el Estado, personas naturales y jurídicas",160,30]
["IGM-003-03-01","Asesoramiento, asistencia y desarrollo de procesos geodésicos - gravimetría (levantamientos, replanteos y fiscalización) para el desarrollo, defensa y seguridad requeridos por el Estado, personas naturales y jurídicas",160,30]
["IGM-004-01-02","Emisión de cartografía, imágenes y modelos digitales No Reservada para el Estado",160,30]
["IGM-004-02-02","Emisión de cartografía, imágenes y modelos digitales no reservadas para personas naturales o jurídicas",160,30]
["IGM-004-01-01","Emisión de cartografía, imágenes y modelos digitales Reservadas para el Estado",160,30]
["IGM-004-02-01","Emisión de cartografía, imágenes y modelos digitales reservadas para personas naturales o jurídicas",160,30]
["IGM-008-01-04","Emisión de material cartográfico de áreas no reservadas, impreso y/o digital para el sector público, privado.",64,30]
["IGM-008-01-03","Emisión de material cartográfico de áreas reservadas, impreso y/o digital para el sector público, privado.",64,30]
["IGM-002-03-02","Autorización para realizar publicaciones de documentos cartográficos, temáticos y geográficos",8,0]
["IGM-002-03-01","Autorización para trabajos cartográficos",8,0]
["IGM-002-02-02","Registro para realizar publicaciones cartográficas, temáticas y geográficas - Personas Jurídicas",8,0]
["IGM-002-02-01","Registro para realizar publicaciones cartográficas, temáticas y geográficas - Personas Naturales",8,0]
["IGM-002-01-02","Registro para realizar trabajos cartográficos, temáticos y geográficos - Personas Jurídicas",8,0]
["IGM-002-01-01","Registro para realizar trabajos cartográficos, temáticos y geográficos - Personas Naturales",8,0]
["NO APLICA","Atención de solicitudes de acceso a la información pública",1,0]
["IGM-007-01-02","Documentos de seguridad utilizados en administración pública y/o privada.",160,30]
["IGM-007-02-01","Especies Valoradas utilizadas en Administración Pública",160,30]
["IGM-007-03-01","Tarjetas Sintéticas de Seguridad utilizadas en Administración Pública y/o Privada.",160,30]
["IGM-005-01-01","Información cartográfica-geográfica en línea (Escalas liberadas 1:1000.000, 1:250.000, 1:50.000)",1,0]
["IGM-009-01-01","Exposiciones y/o recorridos guiados relacionados con de las ciencias astronómicas y de la tierra",2,0]
["IGM-009-01-03","Proyecciones audiovisuales relacionadas con las ciencias astronómicas y de la tierra",2,0]

{"sheet":"CANAL ATENCIÓN","index":7,"n_rows":43,"n_cols":12,"rows_kept":43,"cut":false,"hidden":false,"merged":[[0,0,0,3],[1,0,1,3]]}
["PRIORIZACIÓN DE TRÁMITES ADMINISTRATIVOS"]
["CANAL DE ATENCIÓN"]
[null,null,null,null,null,null,null,null,"Totalmente en Línea",null,null,0]
["IDENTIFICADOR","TRÁMITE","CANAL ATENCIÓN","PUNTUACIÓN",null,null,null,null,"No se completa totalmente en línea.",null,null,10]
["IGM-005-02-01","Acceso a la Red de Monitoreo Continuo GNSS (Global Navigation Satellite System) del Ecuador","Totalmente en Línea",{"$f":"IF(ISBLANK(C5),\"\",IF(C5=\"Totalmente en línea\",0,IF(C5=\"Inicia en línea\",6,10)))","v":0}]
["IGM-006-03-01","Asesoramiento y/o asistencia técnica en el ámbito de la infraestructura de datos espaciales, cartográfico, geográfico.","No se completa totalmente en línea.",{"$f":"IF(ISBLANK(C6),\"\",IF(C6=\"Totalmente en línea\",0,IF(C6=\"Inicia en línea\",6,10)))","v":10}]
["IGM-009-03-01","Atención a consultas de mapoteca para estudiantes, investigadores, docentes y público en general","No se completa totalmente en línea.",10]
["IGM-010-02-01","Fiscalización de proyectos cartográficos dirigidos a instituciones de la administración pública, gobiernos seccionales y empresas privadas.","No se completa totalmente en línea.",10]
["IGM-006-01-03","Generación de bases de datos geográfica temática.","No se completa totalmente en línea.",10]
["IGM-006-01-02","Generación de cartografía temática militar.","No se completa totalmente en línea.",10]
["IGM-006-02-01","Generación de la base cartográfica oficial del país a escalas medianas y pequeñas.","No se completa totalmente en línea.",10]
["IGM-006-01-01","Generación del estudio geográfico para sector público y privado","No se completa totalmente en línea.",10]
["IGM-009-03-02","Información de cartografía histórica y bienes culturales para estudiantes, investigadores, docentes y público en general","No se completa totalmente en línea.",10]
["IGM-010-01-01","Pronunciamiento técnico para ejecutar trabajos cartográficos, internación de equipos y aeronaves para personas naturales o jurídicas.","No se completa totalmente en línea.",10]
["IGM-009-01-02","Talleres educativos relacionados con de las ciencias astronómicas y de la tierra","No se completa totalmente en línea.",10]
["IGM-006-04-01","Transferencia de conocimiento cartográfico - geográfico para el ámbito militar.","No se completa totalmente en línea.",10]
["IGM-006-04-02","Transferencia de conocimiento en el desarrollo de infraestructura de datos espaciales para el ámbito civil.","No se completa totalmente en línea.",10]
["IGM-001-02-02","Emisión de datos e información terrestre no reservada","No se completa totalmente en línea.",10]
["IGM-001-01-02","Emisión de datos e información terrestre no reservada para el Estado","No se completa totalmente en línea.",10]
["IGM-001-02-01","Emisión de datos e información terrestre reservada","No se completa totalmente en línea.",10]
["IGM-001-01-01","Emisión de datos e información terrestre reservada para el Estado","No se completa totalmente en línea.",10]
["IGM-003-01-01","Asesoramiento, asistencia y desarrollo de procesos geodésicos - control horizontal (levantamientos, replanteos y fiscalización) para el desarrollo, defensa y seguridad requeridos por el Estado, personas naturales y jurídicas","No se completa totalmente en línea.",10]
["IGM-003-02-01","Asesoramiento, asistencia y desarrollo de procesos geodésicos - control vertical (levantamientos, replanteos y fiscalización) para el desarrollo, defensa y seguridad requeridos por el Estado, personas naturales y jurídicas","No se completa totalmente en línea.",10]
["IGM-003-03-01","Asesoramiento, asistencia y desarrollo de procesos geodésicos - gravimetría (levantamientos, replanteos y fiscalización) para el desarrollo, defensa y seguridad requeridos por el Estado, personas naturales y jurídicas","No se completa totalmente en línea.",10]
["IGM-004-01-02","Emisión de cartografía, imágenes y modelos digitales No Reservada para el Estado","No se completa totalmente en línea.",10]
["IGM-004-02-02","Emisión de cartografía, imágenes y modelos digitales no reservadas para personas naturales o jurídicas","No se completa totalmente en línea.",10]
["IGM-004-01-01","Emisión de cartografía, imágenes y modelos digitales Reservadas para el Estado","No se completa totalmente en línea.",10]
["IGM-004-02-01","Emisión de cartografía, imágenes y modelos digitales reservadas para personas naturales o jurídicas","No se completa totalmente en línea.",10]
["IGM-008-01-04","Emisión de material cartográfico de áreas no reservadas, impreso y/o digital para el sector público, privado.","No se completa totalmente en línea.",10]
["IGM-008-01-03","Emisión de material cartográfico de áreas reservadas, impreso y/o digital para el sector público, privado.","No se completa totalmente en línea.",10]
["IGM-002-03-02","Autorización para realizar publicaciones de documentos cartográficos, temáticos y geográficos","No se completa totalmente en línea.",10]
["IGM-002-03-01","Autorización para trabajos cartográficos","No se completa totalmente en línea.",10]
["IGM-002-02-02","Registro para realizar publicaciones cartográficas, temáticas y geográficas - Personas Jurídicas","No se completa totalmente en línea.",10]
["IGM-002-02-01","Registro para realizar publicaciones cartográficas, temáticas y geográficas - Personas Naturales","No se completa totalmente en línea.",10]
["IGM-002-01-02","Registro para realizar trabajos cartográficos, temáticos y geográficos - Personas Jurídicas","No se completa totalmente en línea.",10]
["IGM-002-01-01","Registro para realizar trabajos cartográficos, temáticos y geográficos - Personas Naturales","No se completa totalmente en línea.",10]
["NO APLICA","Atención de solicitudes de acceso a la información pública","Totalmente en Línea",0]
["IGM-007-01-02","Documentos de seguridad utilizados en administración pública y/o privada.","No se completa totalmente en línea.",10]
["IGM-007-02-01","Especies Valoradas utilizadas en Administración Pública","No se completa totalmente en línea.",10]
["IGM-007-03-01","Tarjetas Sintéticas de Seguridad utilizadas en Administración Pública y/o Privada.","No se completa totalmente en línea.",10]
["IGM-005-01-01","Información cartográfica-geográfica en línea (Escalas liberadas 1:1000.000, 1:250.000, 1:50.000)","Totalmente en Línea",0]
["IGM-009-01-01","Exposiciones y/o recorridos guiados relacionados con de las ciencias astronómicas y de la tierra","No se completa totalmente en línea.",10]
["IGM-009-01-03","Proyecciones audiovisuales relacionadas con las ciencias astronómicas y de la tierra","No se completa totalmente en línea.",10]

{"sheet":"RESUMEN","index":8,"n_rows":42,"n_cols":25,"rows_kept":42,"cut":false,"hidden":false,"merged":[[1,0,2,0],[1,1,2,1],[1,2,2,2],[1,3,2,3],[1,4,2,4],[1,9,1,10],[1,11,1,12],[1,13,2,13],[0,2,0,6],[0,7,0,12],[1,5,2,5],[1,6,2,6],[1,7,1,8]]}
[null,null,"BÁSICOS",null,null,null,null,"ADICIONALES"]
["ID trámite","Nombre del trámite","Demanda","Quejas","Costo para administración","Tiempo de respuesta","Canal de atención","Necesidades ciudadanas",null,"Susceptibilidad a corrupción",null,"Volumen de devoluciones",null,"PUNTAJE TOTAL"]
[null,null,null,null,null,null,null,"Criterio","Puntuación","Criterio","Puntuación","Criterio","Puntuación",null,null,null,null,null,null,null,"demanda",0,3,6,10]
["IGM-005-02-01","Acceso a la Red de Monitoreo Continuo GNSS (Global Navigation Satellite System) del Ecuador",0,0,5,0,0,"NO",{"$f":"IF(H4=\"SI\",5,0)","v":0},"NO",{"$f":"IF(J4=\"SI\",10,0)","v":0},"NO",{"$f":"IF(L4=\"SI\",5,0)","v":0},{"$f":"SUM(C4:G4,I4,K4,M4)","v":5},null,null,null,null,null,null,"quejas",0,4,10]
["IGM-006-03-01","Asesoramiento y/o asistencia técnica en el ámbito de la infraestructura de datos espaciales, cartográfico, geográfico.",0,0,5,30,10,"NO",{"$f":"IF(H5=\"SI\",5,0)","v":0},"NO",{"$f":"IF(J5=\"SI\",10,0)","v":0},"NO",{"$f":"IF(L5=\"SI\",5,0)","v":0},{"$f":"SUM(C5:G5,I5,K5,M5)","v":45},null,null,null,null,null,null,"cpa",5,10,20]
["IGM-009-03-01","Atención a consultas de mapoteca para estudiantes, investigadores, docentes y público en general",0,0,5,0,10,"NO",0,"NO",0,"NO",0,{"$f":"SUM(C6:G6,I6,K6,M6)","v":15},null,null,null,null,null,null,"tr",0,30]
["IGM-010-02-01","Fiscalización de proyectos cartográficos dirigidos a instituciones de la administración pública, gobiernos seccionales y empresas privadas.",0,0,5,30,10,"NO",0,"NO",0,"NO",0,45,null,null,null,null,null,null,"ca",0,10]
["IGM-006-01-03","Generación de bases de datos geográfica temática.",0,0,5,30,10,"NO",0,"NO",0,"NO",0,45,null,null,null,null,null,null,null,"SI","NO"]
["IGM-006-01-02","Generación de cartografía temática militar.",0,0,5,30,10,"NO",0,"NO",0,"NO",0,45]
["IGM-006-02-01","Generación de la base cartográfica oficial del país a escalas medianas y pequeñas.",0,0,5,30,10,"NO",0,"NO",0,"NO",0,45]
["IGM-006-01-01","Generación del estudio geográfico para sector público y privado",0,0,5,30,10,"NO",0,"NO",0,"NO",0,45]
["IGM-009-03-02","Información de cartografía histórica y bienes culturales para estudiantes, investigadores, docentes y público en general",0,0,5,30,10,"NO",0,"NO",0,"NO",0,45]
["IGM-010-01-01","Pronunciamiento técnico para ejecutar trabajos cartográficos, internación de equipos y aeronaves para personas naturales o jurídicas.",0,0,5,30,10,"NO",0,"NO",0,"NO",0,45]
["IGM-009-01-02","Talleres educativos relacionados con de las ciencias astronómicas y de la tierra",0,0,5,0,10,"NO",0,"NO",0,"NO",0,15]
["IGM-006-04-01","Transferencia de conocimiento cartográfico - geográfico para el ámbito militar.",0,0,5,30,10,"NO",0,"NO",0,"NO",0,45]
["IGM-006-04-02","Transferencia de conocimiento en el desarrollo de infraestructura de datos espaciales para el ámbito civil.",0,0,5,30,10,"NO",0,"NO",0,"NO",0,45]
["IGM-001-02-02","Emisión de datos e información terrestre no reservada",3,0,5,30,10,"NO",0,"NO",0,"NO",0,48]
["IGM-001-01-02","Emisión de datos e información terrestre no reservada para el Estado",3,0,5,30,10,"NO",0,"NO",0,"NO",0,48]
["IGM-001-02-01","Emisión de datos e información terrestre reservada",3,0,5,30,10,"NO",0,"NO",0,"NO",0,48]
["IGM-001-01-01","Emisión de datos e información terrestre reservada para el Estado",3,0,5,30,10,"NO",0,"NO",0,"NO",0,48]
["IGM-003-01-01","Asesoramiento, asistencia y desarrollo de procesos geodésicos - control horizontal (levantamientos, replanteos y fiscalización) para el desarrollo, defensa y seguridad requeridos por el Estado, personas naturales y jurídicas",3,0,5,30,10,"NO",0,"NO",0,"NO",0,48]
["IGM-003-02-01","Asesoramiento, asistencia y desarrollo de procesos geodésicos - control vertical (levantamientos, replanteos y fiscalización) para el desarrollo, defensa y seguridad requeridos por el Estado, personas naturales y jurídicas",3,0,10,30,10,"NO",0,"NO",0,"NO",0,53]
["IGM-003-03-01","Asesoramiento, asistencia y desarrollo de procesos geodésicos - gravimetría (levantamientos, replanteos y fiscalización) para el desarrollo, defensa y seguridad requeridos por el Estado, personas naturales y jurídicas",3,0,10,30,10,"NO",0,"NO",0,"NO",0,53]
["IGM-004-01-02","Emisión de cartografía, imágenes y modelos digitales No Reservada para el Estado",3,0,10,30,10,"NO",0,"NO",0,"NO",0,53]
["IGM-004-02-02","Emisión de cartografía, imágenes y modelos digitales no reservadas para personas naturales o jurídicas",3,0,10,30,10,"NO",0,"NO",0,"NO",0,53]
["IGM-004-01-01","Emisión de cartografía, imágenes y modelos digitales Reservadas para el Estado",3,0,10,30,10,"NO",0,"NO",0,"NO",0,53]
["IGM-004-02-01","Emisión de cartografía, imágenes y modelos digitales reservadas para personas naturales o jurídicas",3,0,10,30,10,"NO",0,"NO",0,"NO",0,53]
["IGM-008-01-04","Emisión de material cartográfico de áreas no reservadas, impreso y/o digital para el sector público, privado.",6,0,10,30,10,"NO",0,"NO",0,"NO",0,56]
["IGM-008-01-03","Emisión de material cartográfico de áreas reservadas, impreso y/o digital para el sector público, privado.",6,0,10,30,10,"NO",0,"NO",0,"NO",0,56]
["IGM-002-03-02","Autorización para realizar publicaciones de documentos cartográficos, temáticos y geográficos",6,0,20,0,10,"NO",0,"NO",0,"NO",0,36]
["IGM-002-03-01","Autorización para trabajos cartográficos",6,0,20,0,10,"NO",0,"NO",0,"NO",0,36]
["IGM-002-02-02","Registro para realizar publicaciones cartográficas, temáticas y geográficas - Personas Jurídicas",6,0,20,0,10,"NO",0,"NO",0,"NO",0,36]
["IGM-002-02-01","Registro para realizar publicaciones cartográficas, temáticas y geográficas - Personas Naturales",6,0,20,0,10,"NO",0,"NO",0,"NO",0,36]
["IGM-002-01-02","Registro para realizar trabajos cartográficos, temáticos y geográficos - Personas Jurídicas",6,0,20,0,10,"NO",0,"NO",0,"NO",0,36]
["IGM-002-01-01","Registro para realizar trabajos cartográficos, temáticos y geográficos - Personas Naturales",6,0,20,0,10,"NO",0,"NO",0,"NO",0,36]
["NO APLICA","Atención de solicitudes de acceso a la información pública",10,0,20,0,10,"NO",0,"NO",0,"NO",0,40]
["IGM-007-01-02","Documentos de seguridad utilizados en administración pública y/o privada.",10,0,20,30,10,"NO",0,"NO",0,"NO",0,70]
["IGM-007-02-01","Especies Valoradas utilizadas en Administración Pública",10,0,20,30,10,"NO",0,"NO",0,"NO",0,70]
["IGM-007-03-01","Tarjetas Sintéticas de Seguridad utilizadas en Administración Pública y/o Privada.",10,0,20,30,10,"NO",0,"NO",0,"NO",0,70]
["IGM-005-01-01","Información cartográfica-geográfica en línea (Escalas liberadas 1:1000.000, 1:250.000, 1:50.000)",10,0,20,0,0,"NO",0,"NO",0,"NO",0,30]
["IGM-009-01-01","Exposiciones y/o recorridos guiados relacionados con de las ciencias astronómicas y de la tierra",10,0,20,0,10,"NO",0,"NO",0,"NO",0,40]
["IGM-009-01-03","Proyecciones audiovisuales relacionadas con las ciencias astronómicas y de la tierra",10,0,20,0,10,"NO",0,"NO",0,"NO",0,40]